Cogmind - Beta 16 @@@ ROGUE MODE // 2025.12.26 @ 13:48:18 Player: Dosh Result: System corrupted Performance ------------- Evolutions (8) 4000 Regions Visited (24) 4800 Robots Destroyed (308) 1540 Value Destroyed (18782) 18782 Prototype IDs (59) 1180 Alien Tech Used (1) 200 Bonus (16537) 16537 TOTAL SCORE: 47039 Bonus ------- High Alert Combat Kills 2489 Follower Combat Kills 6648 Entered Garrisons 1600 Used RIF Installer 5500 Aligned with FarCom 300 Cogmind --------- Core Integrity 0/1450 Matter 145/300 Energy 29/100 System Corruption 102% Temperature Cool (0) Movement Treading (158) Location -2/Research Parts ------- > --- POWER (3) -------- (None) > --- PROPULSION (6) --- Armored Heavy Treads Advanced Heavy Treads Advanced Heavy Siege Treads > --- UTILITY (11) ----- Huge Storage Unit Improved Heavy Armor Plating > --- WEAPON (3) ------- (None) > --- INVENTORY (25) --- Biometal Medium Treads Relay Coupler [NC] (31) Relay Coupler [NC] (31) Relay Coupler [Sentry] (35) Relay Coupler [Sentry] (26) Relay Coupler [Hunter] (21) Subatomic Replicator HERF Cannon HERF Cannon Tiamat Missile Launcher Peak State ------------ > --- POWER ------------ Light Particle Reactor Light Quantum Reactor Light Quantum Reactor > --- PROPULSION ------- Armored Heavy Treads Advanced Heavy Treads Advanced Heavy Siege Treads > --- UTILITY ---------- Coolant Network Huge Storage Unit Precision Energy Filter Advanced Transmission Jammer Graphene Brace Advanced Force Field Relay Coupler [NC] Relay Coupler [C] Relay Coupler [Sentry] Relay Coupler [Behemoth] > --- WEAPON ----------- HERF Cannon HERF Cannon Enhanced Nova Cannon > --- INVENTORY -------- Particle Reactor Micro Antimatter Reactor Armored Medium Treads Biometal Medium Treads Advanced Cryofiber Web Heavy Armor Plating Advanced Force Field Relay Coupler [NC] Relay Coupler [NC] Relay Coupler [C] Relay Coupler [C] Relay Coupler [Sentry] Relay Coupler [Sentry] Relay Coupler [Hunter] Relay Coupler [Hunter] Relay Coupler [Heavy] Transdimensional Reconstructor Subatomic Replicator Matter Neutralizer Matter Neutralizer Tiamat Missile Launcher Advanced Remote Datajack Field Lobotomy Kit [Rating: 182] Favorites ----------- Power Antimatter Reactor Engine Improved Deuterium Engine Power Core Reinforced Fission Core Reactor Antimatter Reactor Propulsion Light Treads Treads Light Treads Utility Huge Storage Unit Device Transmission Jammer Storage Huge Storage Unit Processor Advanced Melee Analysis Suite Hackware Relay Coupler [NC] Protection Improved Heavy Armor Plating Weapon Improved Assault Rifle Energy Gun Advanced Plasma Rifle Energy Cannon Cooled Particle Cannon Ballistic Gun Improved Assault Rifle Ballistic Cannon Enhanced Hardcell Cannon Launcher Grenade Launcher Special Weapon Improved Remote Datajack Impact Weapon Great Maul Special Melee Weapon Improved Datajack Build | -11 -10 -10 -10 -9 -8 -8 -8 -8 -7 -7 -7 -7 -6 -6 -5 -5 -4 -4 -4 -4 -3 -3 -3 -2 ------- Run | Yrd Mat Min Exi Min Mat Gar Sto Gar Fac Gar Fac Gar Fac Gar Fac Gar Fac Was Fac Gar Res Qua Gar Res Slots Evolved 16 | . . . . . 4 . . . 2 . . . 2 . 2 . 2 . . . 2 . . 2 Power 2 | . . . . . . . . . . . . . 1 . . . . . . . 1 . . . Propulsion 4 | . . . . . 2 . . . . . . . . . . . 1 . . . 1 . . . Utility 9 | . . . . . 2 . . . 2 . . . 1 . 2 . 1 . . . . . . 1 Weapon 1 | . . . . . . . . . . . . . . . . . . . . . . . . 1 Parts Attached 220 | 6 5 5 1 . 17 11 14 2 6 8 6 10 12 25 5 12 6 8 2 7 3 16 11 22 Power 31 | 1 1 1 . . 5 . 1 . . 1 2 . 1 3 . 3 1 4 1 . . 3 1 2 Engine 14 | 1 1 1 . . 3 . 1 . . 1 2 . 1 3 . . . . . . . . . . Core 6 | . . . . . 2 . . . . . . . . . . 3 1 . . . . . . . Reactor 11 | . . . . . . . . . . . . . . . . . . 4 1 . . 3 1 2 Propulsion 35 | 2 . 2 . . 6 7 3 . 1 2 1 . 1 2 . . 1 . . 1 1 1 . 4 Treads 35 | 2 . 2 . . 6 7 3 . 1 2 1 . 1 2 . . 1 . . 1 1 1 . 4 Leg . | . . . . . . . . . . . . . . . . . . . . . . . . . Wheel . | . . . . . . . . . . . . . . . . . . . . . . . . . Hover . | . . . . . . . . . . . . . . . . . . . . . . . . . Flight . | . . . . . . . . . . . . . . . . . . . . . . . . . Utility 114 | 1 1 2 1 . 3 . 8 2 2 5 2 8 8 16 4 8 3 2 1 6 2 9 8 12 Device 33 | . . 1 . . . . 2 1 1 2 . 3 1 9 . 1 1 1 . 1 . 4 1 4 Storage 3 | 1 1 . 1 . . . . . . . . . . . . . . . . . . . . . Processor 2 | . . . . . . . . . . . . . . 1 . . . . . . . . . 1 Hackware 62 | . . . . . 1 . 3 1 1 1 2 4 6 5 4 7 2 . 1 4 2 5 7 6 Protection 14 | . . 1 . . 2 . 3 . . 2 . 1 1 1 . . . 1 . 1 . . . 1 Artifact . | . . . . . . . . . . . . . . . . . . . . . . . . . Weapon 40 | 2 3 . . . 3 4 2 . 3 . 1 2 2 4 1 1 1 2 . . . 3 2 4 Energy Gun 2 | 1 . . . . . . . . . . . . . 1 . . . . . . . . . . Energy Cannon 16 | . . . . . . . 1 . 2 . 1 2 1 1 1 1 1 . . . . 2 1 2 Ballistic Gun 8 | 1 2 . . . 2 2 1 . . . . . . . . . . . . . . . . . Ballistic Cannon 1 | . . . . . . . . . . . . . . . . . . 1 . . . . . . Launcher 6 | . 1 . . . . 1 . . . . . . 1 1 . . . 1 . . . . 1 . Special Weapon 5 | . . . . . . . . . 1 . . . . 1 . . . . . . . 1 . 2 Impact Weapon 1 | . . . . . 1 . . . . . . . . . . . . . . . . . . . Slashing Weapon . | . . . . . . . . . . . . . . . . . . . . . . . . . Piercing Weapon . | . . . . . . . . . . . . . . . . . . . . . . . . . Special Melee Weapon 1 | . . . . . . 1 . . . . . . . . . . . . . . . . . . Unidentified Prototypes 18 | . 1 1 . . 3 . 1 . 1 . 1 . . 6 . . . 1 . . . 2 . 1 Parts Lost 63 | . . . . . 4 1 2 1 . . 2 2 3 5 . 2 . . 1 4 . 3 2 31 Power 12 | . . . . . . . . . . . 1 . . 3 . 1 . . . . . 1 1 5 Propulsion 7 | . . . . . 2 1 1 . . . . . 1 . . . . . . 1 . . . 1 Utility 33 | . . . . . 1 . 1 . . . 1 1 1 2 . 1 . . . 3 . 1 1 20 Weapon 11 | . . . . . 1 . . 1 . . . 1 1 . . . . . 1 . . 1 . 5 Highest Loss Streak 14 | . . . . . 2 1 2 1 . . 1 1 2 3 . 1 . . 1 3 . 2 1 14 To Critical Strikes 1 | . . . . . . . . . . . . . . . . . . . . 1 . . . . Average Backups 20 | 1 8 13 16 17 21 22 22 23 21 20 21 19 18 21 21 22 21 21 20 19 23 23 23 21 Power 1 | . 1 1 1 1 2 2 1 1 1 1 1 2 1 . 1 . 1 1 1 1 . 2 2 1 Propulsion 2 | . 2 4 5 5 5 4 4 6 5 3 2 2 1 1 1 1 1 1 1 1 1 2 2 1 Utility 10 | . 1 3 4 4 7 11 11 11 9 10 11 11 12 14 13 14 13 12 10 11 13 11 11 11 Weapon 3 | . 3 4 4 5 4 3 3 3 3 4 3 2 2 3 4 4 4 3 4 4 5 4 3 3 Tool/Special . | . . . . . . . . . . . . . . . . . . . . . . . . . Unused Backups 52 | . 2 1 . . 5 2 1 1 1 7 3 2 . 8 . 3 1 1 . 3 . 1 2 8 Power 5 | . 1 . . . 2 . . . . . . . . . . . . . . . . . 1 1 Propulsion 7 | . 1 . . . . . . . . 3 . . . 3 . . . . . . . . . . Utility 30 | . . . . . 1 2 1 1 1 4 . 1 . 3 . 3 1 1 . 3 . 1 1 6 Weapon 5 | . . 1 . . 1 . . . . . 1 . . 2 . . . . . . . . . . Tool/Special 5 | . . . . . 1 . . . . . 2 1 . . . . . . . . . . . 1 Average Slot Usage (%) 84 | . 85 95 100 100 89 90 98 100 97 81 75 74 79 79 80 79 77 83 83 83 79 78 79 78 Engine 6 | . 14 14 14 14 5 9 9 9 7 7 6 7 13 12 11 . . . . . . . . . Core 1 | . . . . . 3 . . . . . . . . . . 10 10 3 . . . . . . Reactor 3 | . . . . . . . . . . . . . . . . . . 6 10 10 13 13 13 12 Treads 21 | . 28 28 28 28 35 36 35 36 30 17 15 15 13 12 11 11 11 15 15 15 13 14 14 13 Device 10 | . . . . . . . 1 9 19 18 12 13 8 15 18 17 16 17 20 21 18 16 16 15 Storage 7 | . 14 14 14 14 9 9 9 9 7 7 7 7 6 6 5 5 5 5 5 5 4 4 4 4 Hackware 10 | . . . . . 7 9 12 8 7 6 9 6 17 10 14 13 17 18 15 13 14 18 20 19 Protection 6 | . . 9 14 14 9 9 12 9 7 7 7 7 5 5 5 5 5 5 5 4 4 1 . . Energy Cannon 5 | . . . . . . . . . 3 14 13 13 8 9 5 7 6 9 7 9 4 6 5 7 Ballistic Gun 6 | . 17 28 28 18 16 13 12 16 7 . . . . . . . . . . . . . . . Special Weapon 1 | . . . . . . . . . 3 . . . 3 1 4 3 3 . 2 . 3 1 3 3 Peak Build Rating 182 | 6 12 20 19 19 35 35 33 32 46 77 77 78 84 95 99 104 121 128 126 138 154 161 165 182 Average Rating 80 | 4 9 13 17 17 31 33 31 31 40 71 74 75 80 91 97 100 109 119 120 128 152 155 161 170 On Entrance 72 | . 6 12 14 19 17 35 33 32 31 45 77 71 78 81 95 98 98 119 121 121 138 154 161 163 Avg Prop Armor Cover (%) 9 | . . . . . . . . . . . . . . . . . . . . . 8 10 . . Naked Turns . | . . . . . . . . . . . . . . . . . . . . . . . . . Heaviest Build 181 | 14 38 36 96 96 116 118 115 108 120 128 122 123 140 156 156 167 176 171 169 163 179 180 158 181 Greatest Support 230 | 40 40 40 40 40 80 80 80 80 80 150 150 150 150 150 150 150 177 177 177 182 230 230 215 215 Greatest Overweight (x) 2 | . . . 2 2 1 1 1 1 1 1 . . . 1 1 1 1 . . . 1 1 . . Average Overweight (x) . | . . . . 2 1 1 1 1 1 . . . . . . . . . . . . . . . Largest Inventory Capacity 25 | 8 15 15 25 25 25 25 25 25 25 25 25 25 25 25 25 25 25 25 25 25 25 25 25 25 Average Capacity 24 | 7 12 15 21 25 25 25 25 25 25 25 25 25 25 25 25 25 25 25 25 25 25 25 25 25 Most Carried 25 | 2 12 15 20 20 25 25 25 25 25 25 25 25 25 25 24 25 25 25 25 25 25 25 25 25 Average Carried 22 | 1 8 13 18 20 24 24 24 24 22 24 24 22 22 24 23 24 23 24 23 22 24 24 24 21 Final Capacity 25 | 8 15 15 25 25 25 25 25 25 25 25 25 25 25 25 25 25 25 25 25 25 25 25 25 25 Final Carried 25 | 2 12 15 20 20 24 25 25 25 22 25 25 25 17 25 22 25 25 25 25 25 25 25 25 10 Class Distribution -------------------- 48% | Botlord-Mutant 19% | Scavenger-Mutant 13% | Mutant 11% | Bothacker-Mutant 5% | Botlord-Tank Dominant Class ---------------- Mutant | -10/Materials Mutant | -10/Mines Mutant | -10/Exiles Mutant | -9/Mines Scavenger-Mutant | -8/Materials Scavenger-Mutant | -8/Garrison Scavenger-Mutant | -8/Storage Bothacker-Mutant | -8/Garrison Bothacker-Mutant | -7/Factory Bothacker-Mutant | -7/Garrison Botlord-Mutant | -7/Factory Botlord-Mutant | -7/Garrison Botlord-Mutant | -6/Factory Botlord-Mutant | -6/Garrison Botlord-Mutant | -5/Factory Botlord-Mutant | -5/Garrison Botlord-Mutant | -4/Factory Botlord-Mutant | -4/Waste Botlord-Mutant | -4/Factory Botlord-Mutant | -4/Garrison Botlord-Mutant | -3/Research Botlord-Mutant | -3/Quarantine Botlord-Mutant | -3/Garrison Botlord-Tank | -2/Research Resources | -11 -10 -10 -10 -9 -8 -8 -8 -8 -7 -7 -7 -7 -6 -6 -5 -5 -4 -4 -4 -4 -3 -3 -3 -2 ----------- Run | Yrd Mat Min Exi Min Mat Gar Sto Gar Fac Gar Fac Gar Fac Gar Fac Gar Fac Was Fac Gar Res Qua Gar Res Matter Collected 9858 | 141 669 192 . 59 950 706 758 253 136 264 375 372 387 834 120 488 163 214 308 389 151 631 656 642 Remotely . | . . . . . . . . . . . . . . . . . . . . . . . . . Salvage Created 13366 | . 586 319 . 16 1567 614 924 260 203 1014 492 946 352 1316 131 519 138 263 556 1098 153 973 121 805 Parts 659 | . 38 24 . 3 84 39 53 22 7 57 21 37 22 35 11 12 11 2 27 39 11 48 14 42 Haulers Intercepted 3 | . . . . . 1 . . . 1 . 1 . . . . . . . . . . . . . Recyclers Shooed 7 | . 2 . . . . . 1 . . . 1 . 3 . . . . . . . . . . . Parts Field Recycled . | . . . . . . . . . . . . . . . . . . . . . . . . . Retrieved Matter . | . . . . . . . . . . . . . . . . . . . . . . . . . Parts Self-Destructed . | . . . . . . . . . . . . . . . . . . . . . . . . . Prevented . | . . . . . . . . . . . . . . . . . . . . . . . . . Parts Restored . | . . . . . . . . . . . . . . . . . . . . . . . . . Kills | -11 -10 -10 -10 -9 -8 -8 -8 -8 -7 -7 -7 -7 -6 -6 -5 -5 -4 -4 -4 -4 -3 -3 -3 -2 ------- Run | Yrd Mat Min Exi Min Mat Gar Sto Gar Fac Gar Fac Gar Fac Gar Fac Gar Fac Was Fac Gar Res Qua Gar Res Combat Hostiles Destroyed 271 | . 17 10 . 3 30 20 18 6 3 21 15 21 15 12 5 6 2 1 12 16 3 16 9 10 Melee 1 | . . . . . . . . . . . . . . 1 . . . . . . . . . . Guns 82 | . 2 10 . . 30 14 16 6 3 . . . . 1 . . . . . . . . . . Cannons 88 | . . . . . . . 1 . . 10 5 12 5 9 2 4 1 1 5 9 3 11 1 9 AOE 78 | . 15 . . 3 . 6 . . . 11 8 7 10 . 3 . 1 . 6 . . . 8 . Classes Destroyed 22 | . 6 1 . . 6 . . 1 . 1 . . 1 1 . . 1 1 . . . . 1 2 Worker 11 | . 1 . . . 1 . . . . . . . 2 . . . 2 . 2 . 1 . . 2 Builder 2 | . . . . . 1 . . . . . 1 . . . . . . . . . . . . . Tunneler 3 | . 1 1 . . . . . . . . . . . . . . . . 1 . . . . . Hauler 3 | . . . . . 1 . . . 1 . 1 . . . . . . . . . . . . . Recycler 5 | . 3 . . . 1 . 1 . . . . . . . . . . . . . . . . . Operator 3 | . 2 . . . . . . . . . . . . . . . 1 . . . . . . . Watcher 5 | . . . . . 2 . 1 . . . . . . . . . . . . . . . . 2 Swarmer 72 | . 6 6 . 3 6 9 2 1 . 11 8 8 1 1 5 . 1 . 4 . . . . . Cutter 8 | . . . . . . . . . . . . . . . . . . . . . . . 8 . Saboteur 1 | . . . . . . . . . . . . . . . . . . . . . . . . 1 Grunt 84 | . 11 2 . . 16 4 10 1 2 7 . 6 2 4 . 1 . . 3 12 . 1 . 2 Brawler 5 | . . . . . 1 1 . . . . . 1 . . . . . . 1 1 . . . . Duelist 2 | . . . . . 1 . . . . . 1 . . . . . . . . . . . . . Protector 3 | . . . . . . . . . . . . . 3 . . . . . . . . . . . Sentry 30 | . . 2 . . 4 6 6 1 1 . 2 4 . 2 . . . . . . . 1 . 1 Demolisher 1 | . . . . . . . . . . . . . . . . . . . . . . . . 1 Specialist 13 | . . . . . 2 . . . . 2 . 2 2 . . 1 . . . . . 2 . 2 Hunter 14 | . . . . . . . . . . 1 2 . 4 . . 3 . . 1 2 . . 1 . Programmer 36 | . . . . . . . . 3 . . 2 3 3 3 . . . . 3 . 3 12 . 4 Heavy 1 | . . . . . . . . . . . . . . . . . 1 . . . . . . . Behemoth 5 | . . . . . . . . . . . . . . 3 . 1 . . . 1 . . . . Compactor 1 | . . . . . . . . . . . . . . . . . . 1 . . . . . . Best Kill Streak 12 | . 6 5 . 3 3 5 3 3 2 5 4 5 12 2 5 2 3 1 5 2 3 3 8 3 Combat Bots Only 10 | . 4 5 . 3 3 5 3 3 2 5 4 5 10 2 5 2 1 1 4 4 3 3 8 3 Max Kills in Single Turn 4 | . 2 2 . 3 2 3 1 1 1 4 2 2 4 1 3 1 2 1 4 1 1 1 4 1 Gunslinging 1 | . . 1 . . 1 . . . . . . . . . . . . . . . . . . . Exploded 4 | . 2 . . 3 . 2 . . . 4 2 2 4 . 3 . 1 . 3 . . . 4 . Melee 1 | . . . . . . . . . . . . . . 1 . . . . . . . . . . Uniques/NPCs Destroyed . | . . . . . . . . . . . . . . . . . . . . . . . . . Combat | -11 -10 -10 -10 -9 -8 -8 -8 -8 -7 -7 -7 -7 -6 -6 -5 -5 -4 -4 -4 -4 -3 -3 -3 -2 -------- Run | Yrd Mat Min Exi Min Mat Gar Sto Gar Fac Gar Fac Gar Fac Gar Fac Gar Fac Was Fac Gar Res Qua Gar Res Hostile Shots Fired 2158 | . 36 35 . 13 143 70 109 55 16 58 117 229 156 217 23 40 33 . 61 117 25 159 62 384 Missed 642 | . 11 10 . 4 35 21 27 13 8 14 48 72 48 80 6 13 12 . 21 24 10 41 21 103 Hits 1516 | . 25 25 . 9 108 49 82 42 8 44 69 157 108 137 17 27 21 . 40 93 15 118 41 281 Melee 11 | . . . . . . . . . . . 4 3 . . . . . . . . . . 4 . Projectile 1505 | . 25 25 . 9 108 49 82 42 8 44 65 154 108 137 17 27 21 . 40 93 15 118 37 281 AOE 5 | . . . . . . . . . . . 1 . . . . . . . 1 . . . 1 2 Critical Strikes 60 | . . 1 . . 4 1 3 . . . 1 6 2 8 . 1 1 . 4 7 . 9 4 8 Actively Blocked 10 | . . . . . . . . . . . . . . . . . . . . 1 . 1 2 6 Part Disruptions 5 | . . . . . . . . . . . . . . . . . . . . . 1 4 . . Damage Taken 22531 | . 285 300 . 106 1597 687 1257 556 64 844 1005 1889 1844 2085 191 401 283 . 490 1622 169 1363 776 4717 Core 1446 | . 46 25 . . 133 35 109 31 19 15 107 162 151 61 17 37 20 . 44 125 . 39 35 235 Absorbed by Shields 4409 | . . . . . . . . 41 . . . 32 . 422 148 131 190 . 442 602 176 1184 597 444 Reduced by Siege Mode 153 | . . . . . . . . . . . . . . 64 . . . . . 89 . . . . Ignored by Resistances 76 | . . . . . . . . . . . . . . . . . . . . . . . . 76 Regen/Repaired (Parts) 4919 | . . . . . 457 . 434 . . . 313 1178 329 . . . 402 . 779 . 251 143 . 633 Core Remaining (%) 76 | 100 . . . 71 . . . 44 . . . 56 . 75 . 94 . . . 83 . . 86 . Volleys Fired 1241 | . 53 23 . 3 106 59 58 25 10 77 54 76 65 137 24 81 23 4 39 71 18 75 57 103 Largest 3 | . 2 2 . 1 2 2 2 2 2 2 2 2 2 2 2 2 2 2 2 2 2 2 2 3 Hottest 345 | . 60 46 . 30 48 62 123 48 48 90 60 180 133 195 195 195 195 195 210 210 210 210 210 345 Shots Fired 2011 | . 69 46 . 3 212 117 118 50 17 135 92 129 81 229 27 99 35 8 52 124 26 120 67 155 Gun 636 | . 49 46 . . 212 112 114 50 14 . . . . 39 . . . . . . . . . . Cannon 1071 | . . . . . . . 4 . . 129 75 111 45 164 8 80 24 8 38 115 16 104 33 117 Launcher 69 | . 20 . . 3 . 5 . . . 6 7 8 9 . 1 . 4 . 2 . . . 4 . Special 235 | . . . . . . . . . 3 . 10 10 27 26 18 19 7 . 12 9 10 16 30 38 Kinetic 595 | . 47 46 . . 212 112 114 50 14 . . . . . . . . . . . . . . . Thermal 986 | . . . . . . . 4 . . 129 75 111 45 203 8 72 20 8 29 57 16 89 27 93 Explosive 64 | . 20 . . 3 . 5 . . . 6 7 8 9 . . . . . 2 . . . 4 . Electromagnetic 131 | . 2 . . . . . . . . . . . . . 1 8 8 . 9 58 . 15 6 24 Robot Hit Streak 29 | . 10 13 . 1 15 14 16 14 6 14 9 11 7 29 4 11 12 4 11 18 17 14 11 16 Robot Miss Streak 5 | . 3 3 . 2 5 3 3 2 2 3 3 4 3 3 3 2 2 1 3 3 1 2 3 3 Penetration Max . | . . . . . . . . . . . . . . . . . . . . . . . . . Secondary Targets 9 | . 1 1 . . 4 2 . 1 . . . . . . . . . . . . . . . . Max Gunslinging Chain 1 | . 1 1 . . 1 1 . 1 . . . . . . . . . . . . . . . . Shots Hit Robots 1239 | . 37 29 . 1 141 54 92 36 12 76 57 67 49 131 14 59 22 6 34 77 25 84 38 98 Core Hits 519 | . 40 15 . 4 69 29 35 12 6 44 19 35 45 35 5 11 9 1 12 24 7 25 16 21 Critical Kills 15 | . . . . . 2 . 1 . 1 . 1 1 . 4 . . . . 1 1 . 3 . . Critical Parts Destroyed 7 | . . . . . 4 . 3 . . . . . . . . . . . . . . . . . Critical Strikes 29 | . . . . . 6 . 4 . 1 . 1 1 . 10 . . . . 1 2 . 3 . . Burn 6 | . . . . . . . . . . . . . . 6 . . . . . . . . . . Meltdown 11 | . . . . . . . . . . . 1 1 . 4 . . . . 1 1 . 3 . . Destroy 10 | . . . . . 6 . 3 . 1 . . . . . . . . . . . . . . . Corrupt 1 | . . . . . . . . . . . . . . . . . . . . 1 . . . . Smash 1 | . . . . . . . 1 . . . . . . . . . . . . . . . . . Melee Attacks 42 | . . . . . 5 14 17 6 . . . . . . . . . . . . . . . . Impact 36 | . . . . . 5 13 12 6 . . . . . . . . . . . . . . . . Slashing . | . . . . . . . . . . . . . . . . . . . . . . . . . Piercing . | . . . . . . . . . . . . . . . . . . . . . . . . . Sneak Attacks 6 | . . . . . . 1 5 . . . . . . . . . . . . . . . . . Combat Hostiles . | . . . . . . . . . . . . . . . . . . . . . . . . . Follow-up Attacks . | . . . . . . . . . . . . . . . . . . . . . . . . . Damage Inflicted 40001 | 1 1499 471 . 138 2254 1351 1632 678 142 3257 2317 2614 3537 3643 226 1978 807 216 1744 2632 789 3034 1667 3374 Guns 6780 | . 492 441 . . 2226 811 1262 678 142 . . . . 728 . . . . . . . . . . Cannons 22826 | . . . . . . . 128 . . 2020 1474 1875 669 2901 104 1978 571 216 838 2632 680 3014 565 3161 Explosions 9239 | . 973 . . 130 . 540 . . . 1210 735 738 2776 . 106 . 236 . 734 . . . 1061 . Melee 224 | . . . . . . . 224 . . . . . . . . . . . . . . . . . Ramming 932 | 1 34 30 . 8 28 . 18 . . 27 108 1 92 14 16 . . . 172 . 109 20 41 213 Kinetic 6052 | . 492 441 . . 2226 811 1262 678 142 . . . . . . . . . . . . . . . Thermal 21091 | . . . . . . . 128 . . 2020 1474 1875 669 3629 104 1742 431 216 764 1477 680 2760 490 2632 Explosive 8771 | . 973 . . 130 . 540 . . . 1210 735 738 2776 . . . . . 608 . . . 1061 . Electromagnetic 2931 | . . . . . . . . . . . . . . . 106 236 376 . 200 1155 . 254 75 529 Impact 224 | . . . . . . . 224 . . . . . . . . . . . . . . . . . Slashing . | . . . . . . . . . . . . . . . . . . . . . . . . . Piercing . | . . . . . . . . . . . . . . . . . . . . . . . . . Highest Corruption 102 | . . . . . 4 4 4 6 . . 3 3 . 5 . . 1 1 3 3 1 18 18 102 Average Corruption 5 | . . . . . 4 4 4 5 . . 2 1 . 1 . . 1 1 1 3 1 10 18 33 Corruption Purged 4 | . . . . . . . . . . . . 3 . 1 . . . . . . . . . . Corruption Blocked . | . . . . . . . . . . . . . . . . . . . . . . . . . Effects 355 | . . . . . 27 30 39 18 . . 17 8 . 27 . . 3 3 15 20 5 52 61 30 Message Errors 79 | . . . . . 4 7 9 6 . . 2 . . 10 . . . 1 4 2 1 14 14 5 Matter Fused 88 | . . . . . 6 7 9 2 . . 5 3 . 4 . . 1 2 6 6 1 18 13 5 Heat Flow Errors 40 | . . . . . 5 6 3 2 . . 3 2 . 3 . . . . . 3 . 4 6 3 Energy Discharges 36 | . . . . . 3 4 5 1 . . 1 1 . 3 . . 1 . 1 2 1 2 9 2 Parts Rejected 7 | . . . . . . . 1 . . . . . . 1 . . 1 . . . . . 2 2 Parts Fused 2 | . . . . . . . . . . . . 1 . . . . . . . . . . 1 . Data Loss (minor) 42 | . . . . . 5 2 4 2 . . 3 1 . 3 . . . . 2 4 1 5 8 2 Data Loss (major) 23 | . . . . . 2 2 3 2 . . 1 . . 2 . . . . 1 2 1 2 3 2 Misfires 13 | . . . . . 1 2 3 1 . . 1 . . . . . . . . 1 . 1 1 2 Alerts 9 | . . . . . . . 2 1 . . 1 . . . . . . . . . . 3 2 . Misdirections 4 | . . . . . . . . . . . . . . . . . . . . . . . 2 2 Weapon Failures 12 | . . . . . 1 . . 1 . . . . . 1 . . . . 1 . . 3 . 5 Overload Shots 14 | . . . . . . . . . . 1 . 11 1 1 . . . . . . . . . . Effects 1 | . . . . . . . . . . . . 1 . . . . . . . . . . . . Short Circuit 1 | . . . . . . . . . . . . 1 . . . . . . . . . . . . Overflow Damage 1515 | . 3 . . . . . 144 . . 112 138 61 78 75 8 42 25 . 222 35 89 224 101 158 Projectiles 798 | . . . . . . . . . . 47 53 20 2 75 8 42 24 . 63 35 89 224 . 116 Explosions 437 | . 3 . . . . . . . . 58 85 41 66 . . . 1 . 82 . . . 101 . Melee 280 | . . . . . . . 144 . . 7 . . 10 . . . . . 77 . . . . 42 Knockbacks 3 | . . . . . 1 . 1 . . . . . . . . . . . . . . . . 1 Impact 3 | . . . . . 1 . 1 . . . . . . . . . . . . . . . . 1 Kinetic . | . . . . . . . . . . . . . . . . . . . . . . . . . Secondary . | . . . . . . . . . . . . . . . . . . . . . . . . . Self-Inflicted Damage 766 | . 25 . . 35 . 102 . . . 139 41 60 2 . . . 60 . 81 . . . 221 . Shots 22 | . 1 . . 2 . 3 . . . 4 1 3 1 . . . 3 . 1 . . . 3 . Rammed 55 | 1 6 5 . 2 1 . 2 . . 2 6 1 5 . 2 . . . 3 . 6 2 4 7 Targets Rammed 59 | 1 6 5 . 2 3 . 2 . . 2 6 1 5 1 2 . . . 3 . 6 2 4 8 Kicked . | . . . . . . . . . . . . . . . . . . . . . . . . . Crushed 4 | . . . . . 2 . . . . . . . . 1 . . . . . . . . . 1 Highest Temperature 765 | . 19 16 . . 352 268 266 152 . . 161 255 24 334 . 332 126 . . 408 . 208 168 765 Average Temperature 92 | . 9 6 . . 65 66 42 13 . . 74 72 10 79 . 97 49 . . 162 . 105 69 271 Received Heat Transfer 3595 | . 90 72 . . 756 162 585 18 15 90 81 457 93 388 16 38 4 . 68 408 13 92 31 118 Effects 28 | . . . . . 2 3 . . . . . . . . . . . . . 2 . . . 21 Shutdowns 5 | . . . . . 1 . . . . . . . . . . . . . . 1 . . . 3 Energy Bleed 9 | . . . . . 1 1 . . . . . . . . . . . . . . . . . 7 Interference 6 | . . . . . . 2 . . . . . . . . . . . . . . . . . 4 Matter Decay 4 | . . . . . . . . . . . . . . . . . . . . 1 . . . 3 Damage (major) 4 | . . . . . . . . . . . . . . . . . . . . . . . . 4 Siege Activations 4 | . . . . . . . . . . . 1 . . 1 . . . . . 1 . 1 . . Total Turns 131 | . . . . . . . . . . . 17 . . 43 . . . . . 63 . 8 . . Longest Duration 63 | . . . . . . . . . . . 17 . . 43 . . . . . 63 . 8 . . Martial Activations . | . . . . . . . . . . . . . . . . . . . . . . . . . Shielding Activations . | . . . . . . . . . . . . . . . . . . . . . . . . . Robots Disrupted . | . . . . . . . . . . . . . . . . . . . . . . . . . Combat Hostiles . | . . . . . . . . . . . . . . . . . . . . . . . . . Robots Corrupted 17 | . . . . . . . 2 . . 1 . . . . . 2 . . . 6 . 2 . 4 Combat Hostiles 12 | . . . . . . . 1 . . . . . . . . 2 . . . 6 . 2 . 1 Parts Fried 33 | . . . . . . . 3 . . . . . . . 2 2 . . 4 13 . 3 1 5 Impact Corruptions 14 | . . . . . . . 5 . . 1 . . 1 . . . . . 3 . . . 1 3 Robots Melted 15 | . . . . . . . . . . . 2 2 . 6 . . . . 1 1 . 3 . . Combat Hostiles 10 | . . . . . . . . . . . 2 2 . 1 . . . . 1 1 . 3 . . Parts Melted 53 | . . . . . . . . . . 3 11 8 2 14 . . . . 2 2 . 10 . 1 Heat Transferred 22976 | . . . . . . . 150 . . 2775 1961 2324 839 5197 111 1628 444 222 679 1517 555 2331 518 1725 Parts Sabotaged . | . . . . . . . . . . . . . . . . . . . . . . . . . Parts Stolen . | . . . . . . . . . . . . . . . . . . . . . . . . . Parts Stripped . | . . . . . . . . . . . . . . . . . . . . . . . . . Power Chain Reactions . | . . . . . . . . . . . . . . . . . . . . . . . . . Alert | -11 -10 -10 -10 -9 -8 -8 -8 -8 -7 -7 -7 -7 -6 -6 -5 -5 -4 -4 -4 -4 -3 -3 -3 -2 ------- Run | Yrd Mat Min Exi Min Mat Gar Sto Gar Fac Gar Fac Gar Fac Gar Fac Gar Fac Was Fac Gar Res Qua Gar Res Maximum Alert Level 5 | . 1 . . . 1 4 2 2 1 3 2 4 3 5 4 4 3 1 1 3 2 . 3 4 Low Security (%) 32 | 100 54 100 . 100 80 . 6 . 93 7 . . . . . . . 73 48 8 95 100 12 . Level 1 14 | . 45 . . . 19 11 32 18 6 53 . . 16 8 . 2 . 26 51 23 . . 9 . Level 2 21 | . . . . . . 18 60 81 . 20 100 26 32 19 42 18 12 . . 37 4 . 51 7 Level 3 18 | . . . . . . 33 . . . 18 . 40 51 19 30 13 87 . . 30 . . 26 76 Level 4 9 | . . . . . . 37 . . . . . 32 . 14 27 65 . . . . . . . 15 Level 5 3 | . . . . . . . . . . . . . . 37 . . . . . . . . . . High Security . | . . . . . . . . . . . . . . . . . . . . . . . . . Max Security . | . . . . . . . . . . . . . . . . . . . . . . . . . Peak Influence 2235 | . 275 144 . 90 386 1335 675 674 353 941 676 1391 775 2235 1289 1492 874 279 342 838 471 85 1009 1172 Initial 1173 | . . 78 . . . 250 650 310 353 7 493 404 730 346 1173 382 783 279 . 193 471 19 22 567 Average 517 | . 178 46 . 8 100 921 444 554 65 461 566 901 619 1200 785 1069 767 132 166 537 81 27 560 943 Influence Increases 18448 | . 624 258 . 90 1008 1135 1125 374 113 1004 635 1007 804 2319 237 1460 448 2 628 885 279 638 1257 2118 Destroy 0b10 Robot/C 8920 | . 340 200 . 60 600 620 560 280 60 520 340 480 500 860 140 580 260 . 280 380 140 400 480 840 Destroy 0b10 Robot/NC 300 | . 35 5 . . 30 . 25 . 5 20 10 . 45 30 . 5 20 . 15 . 5 . . 50 Destroy Leader 1174 | . 80 30 . 10 156 30 166 10 12 20 112 40 72 40 20 40 50 . 60 30 20 50 30 96 Allied During Kill 2160 | . . . . . . 35 108 23 . 38 40 13 70 405 22 251 50 . 18 14 85 67 272 649 Successful Hack 258 | . 4 6 . . 16 26 10 30 21 . 12 42 34 . . . . . 27 . 12 6 . 12 Select Force Hacks 120 | . 30 . . . 30 . 30 . . . . . . . . . . . 30 . . . . . Disable Machine 750 | . 30 . . . 15 15 120 . . 60 45 30 30 30 30 30 15 . 60 30 . 75 15 120 Anti-Garrison Action 2500 | . . . . . . 250 . . . 150 . 300 . 800 . 400 . . . 300 . . 300 . Destroy Structure 1546 | . 105 2 . 20 11 114 16 31 . 121 46 72 23 154 10 109 38 2 108 56 2 40 160 306 Partial Spotted 45 | . . . . . . 30 . . 15 . . . . . . . . . . . . . . . Lose Combat Pursuer 675 | . . 15 . . 150 15 90 . . 75 30 30 30 . 15 45 15 . 30 75 15 . . 45 Influence Decreases 17520 | . 424 458 . 90 623 185 1982 178 776 74 998 194 1700 579 1926 514 1141 801 351 324 1082 643 278 2199 Entered New Map 6239 | . . 122 . . . 135 685 168 321 4 448 174 661 149 1062 164 709 520 . 84 367 16 8 442 Time Decay 5477 | . 424 336 . 90 560 . 577 . 160 . 490 . 474 . 214 . 302 281 264 . 300 428 . 577 Lost Part 610 | . . . . . 20 10 20 10 . . 20 20 30 50 . 20 . . 10 40 . 30 20 310 Lost Ally 2809 | . . . . . . 40 250 . 20 70 40 . 160 380 . 330 130 . 25 200 40 154 250 720 Purge Threat 2385 | . . . . . 43 . 450 . 275 . . . 375 . 650 . . . 52 . 375 15 . 150 Squads Dispatched 79 | . 4 . . . 12 . 7 . 1 . 8 . 7 . 4 . 8 . 4 . 3 5 . 16 Investigation 20 | . 2 . . . 6 . 3 . . . 1 . 1 . . . . . 2 . 1 1 . 3 Extermination 17 | . . . . . . . . . . . 4 . 1 . 1 . 1 . 1 . 1 4 . 4 Reinforcement 24 | . 2 . . . 3 . 1 . 1 . 1 . 5 . 2 . 4 . 1 . 1 . . 3 Assault 8 | . . . . . . . . . . . 2 . . . . . . . . . . . . 6 Garrison 10 | . . . . . 3 . 3 . . . . . . . 1 . 3 . . . . . . . Intercept . | . . . . . . . . . . . . . . . . . . . . . . . . . Searches Triggered . | . . . . . . . . . . . . . . . . . . . . . . . . . Unchained Authorized 1 | . . . . . . . . . . . . . . . . . . . . . . . . 1 Construction Impeded 1 | . . . . . . . . . . . . . 1 . . . . . . . . . . . Haulers Reinforced 4 | . . . . . . . . . . . 1 . 1 . . . 1 . . . . . . 1 Active Scanning Responses . | . . . . . . . . . . . . . . . . . . . . . . . . . Cargo Convoy Interrupts 1 | . . . . . . . . . . . . . 1 . . . . . . . . . . . Stealth | -11 -10 -10 -10 -9 -8 -8 -8 -8 -7 -7 -7 -7 -6 -6 -5 -5 -4 -4 -4 -4 -3 -3 -3 -2 --------- Run | Yrd Mat Min Exi Min Mat Gar Sto Gar Fac Gar Fac Gar Fac Gar Fac Gar Fac Was Fac Gar Res Qua Gar Res Distress Signals 17 | . 1 . . . 2 . 1 . . . . . 2 1 1 . 1 . . . . 2 . 6 Communications Jammed 378 | . . . . . . . . . . . 10 . . . 24 . 4 . . . 25 170 . 145 Distress Signals 376 | . . . . . . . . . . . 10 . . . 24 . 4 . . . 25 169 . 144 Times Spotted 685 | . 30 10 . 3 43 28 34 13 6 33 30 32 53 38 16 44 21 1 23 34 17 38 53 85 Peak Tracking Total 13 | . 3 3 . 3 4 4 4 3 3 8 5 5 12 3 5 7 4 1 4 13 3 7 8 7 Tactical Retreats 31 | . . 1 . . 6 1 4 . . 4 1 2 1 . 1 1 1 . 2 2 1 . . 3 Traps | -11 -10 -10 -10 -9 -8 -8 -8 -8 -7 -7 -7 -7 -6 -6 -5 -5 -4 -4 -4 -4 -3 -3 -3 -2 ------- Run | Yrd Mat Min Exi Min Mat Gar Sto Gar Fac Gar Fac Gar Fac Gar Fac Gar Fac Was Fac Gar Res Qua Gar Res Traps Triggered 51 | . 1 . . . 5 7 1 3 . 2 4 2 . 8 . 6 1 . . 4 . . 5 2 Indirectly . | . . . . . . . . . . . . . . . . . . . . . . . . . Trap Hack Attempts . | . . . . . . . . . . . . . . . . . . . . . . . . . Triggered . | . . . . . . . . . . . . . . . . . . . . . . . . . Disarmed . | . . . . . . . . . . . . . . . . . . . . . . . . . Reprogrammed . | . . . . . . . . . . . . . . . . . . . . . . . . . Reused . | . . . . . . . . . . . . . . . . . . . . . . . . . Traps Extracted . | . . . . . . . . . . . . . . . . . . . . . . . . . Installed . | . . . . . . . . . . . . . . . . . . . . . . . . . Triggered . | . . . . . . . . . . . . . . . . . . . . . . . . . Machines | -11 -10 -10 -10 -9 -8 -8 -8 -8 -7 -7 -7 -7 -6 -6 -5 -5 -4 -4 -4 -4 -3 -3 -3 -2 ---------- Run | Yrd Mat Min Exi Min Mat Gar Sto Gar Fac Gar Fac Gar Fac Gar Fac Gar Fac Was Fac Gar Res Qua Gar Res Machines Disabled 81 | . 2 . . . 1 4 8 . . 5 3 6 2 10 2 8 1 . 4 6 . 5 6 8 Max in Single Turn 2 | . 1 . . . 1 1 1 . . 1 1 1 1 1 1 1 . . 2 1 . 1 1 1 Garrison Access 2 | . . . . . . . . . . . . . . . . . . . . . . . . 2 Garrison Relay 29 | . . . . . . 3 . . . 2 . 4 . 6 . 5 . . . 4 . . 5 . Machines Repaired . | . . . . . . . . . . . . . . . . . . . . . . . . . Machines Dismantled . | . . . . . . . . . . . . . . . . . . . . . . . . . Machines Sabotaged . | . . . . . . . . . . . . . . . . . . . . . . . . . Overloaded Fab Kills . | . . . . . . . . . . . . . . . . . . . . . . . . . Hacking | -11 -10 -10 -10 -9 -8 -8 -8 -8 -7 -7 -7 -7 -6 -6 -5 -5 -4 -4 -4 -4 -3 -3 -3 -2 --------- Run | Yrd Mat Min Exi Min Mat Gar Sto Gar Fac Gar Fac Gar Fac Gar Fac Gar Fac Was Fac Gar Res Qua Gar Res Machines Accessed 99 | . 5 2 2 . 12 3 13 2 2 1 7 3 5 4 3 1 3 . 4 3 3 12 1 8 Terminals 65 | . 4 1 . . 8 3 11 2 . 1 2 3 4 4 1 1 1 . . 3 2 9 1 4 Fabricators 5 | . . . . . . . . . . . 3 . . . . . 1 . . . 1 . . . Repair Stations 8 | . . . . . 1 . 1 . . . 1 . . . 1 . . . 1 . . 2 . 1 Recycling Units 2 | . 1 . . . 1 . . . . . . . . . . . . . . . . . . . Scanalyzers 6 | . . . . . 1 . . . 1 . . . . . . . 1 . 2 . . . . 1 Garrison Access 10 | . . . . . 1 . 1 . 1 . 1 . 1 . 1 . . . 1 . . 1 . 2 Total Hacks 231 | . 15 3 2 . 33 6 34 4 4 3 15 5 8 8 7 3 10 . 15 7 5 26 1 17 Successful 105 | . 5 2 2 . 22 3 15 2 3 1 5 3 3 3 3 . 5 . 10 1 4 8 . 5 Failed 122 | . 9 1 . . 10 3 19 2 1 2 10 2 5 5 4 3 4 . 4 6 1 18 1 12 Catastrophic 22 | . 1 . . . 1 2 1 . . 1 . 2 1 1 1 . . . . 3 . 4 1 3 Database Lockouts 4 | . 1 . . . 1 . . . . . . . . . . . 1 . 1 . . . . . Manual 103 | . 12 2 1 . 21 2 18 1 . 1 7 1 6 4 5 . 3 . 2 2 . 9 . 6 Terminals 156 | . 14 2 . . 25 6 26 4 . 3 5 5 7 8 3 3 5 . . 7 3 20 1 9 Fabricators 11 | . . . . . . . . . . . 6 . . . . . 3 . . . 2 . . . Repair Stations 19 | . . . . . 2 . 5 . . . 2 . . . 2 . . . 2 . . 4 . 2 Recycling Units 2 | . 1 . . . 1 . . . . . . . . . . . . . . . . . . . Scanalyzers 19 | . . . . . 4 . . . 2 . . . . . . . 2 . 9 . . . . 2 Garrison Access 21 | . . . . . 1 . 3 . 2 . 2 . 1 . 2 . . . 4 . . 2 . 4 Terminal Hacks 42 | . 4 2 2 . 7 3 6 2 . 1 . 3 1 3 1 . 1 . . 1 2 3 . . Record 3 | . 1 . 1 . . . . . . . . . . . . . . . . . . 1 . . Robot Schematic 2 | . 1 . . . 1 . . . . . . . . . . . . . . . . . . . Prototype ID Bank 2 | . . 1 . . 1 . . . . . . . . . . . . . . . . . . . Open Door 9 | . . 1 . . . 1 4 . . . . . . 1 . . . . . 1 1 . . . Branch Access Points 1 | . . . . . . . . . . . . . . . . . . . . . 1 . . . Emergency Access Points 5 | . . . . . . 1 . 1 . 1 . 1 . 1 . . . . . . . . . . Terminal Index 1 | . . . . . . . . . . . . . . . . . 1 . . . . . . . Garrison Index 1 | . . . . . . . . . . . . . 1 . . . . . . . . . . . Alert Level 1 | . . . . . 1 . . . . . . . . . . . . . . . . . . . Unreport Threat 5 | . . . . . 1 . 2 . . . . . . . 1 . . . . . . 1 . . Locate Traps 1 | . 1 . . . . . . . . . . . . . . . . . . . . . . . Dispatch Records 1 | . 1 . . . . . . . . . . . . . . . . . . . . . . . Recall Investigation 1 | . . . . . 1 . . . . . . . . . . . . . . . . . . . Hauler Manifests 2 | . . . . . 1 . . . . . . . . . . . . . . . . 1 . . Zone Layout 1 | . . . . . 1 . . . . . . . . . . . . . . . . . . . Garrison Registry 2 | . . . . . . . . 1 . . . 1 . . . . . . . . . . . . Patrol Navigation 1 | . . . . . . . . . . . . 1 . . . . . . . . . . . . Security Stations 2 | . . . . . . 1 . . . . . . . 1 . . . . . . . . . . Proto ID Catalog 1 | . . . 1 . . . . . . . . . . . . . . . . . . . . . Fabricator Hacks 5 | . . . . . . . . . . . 1 . . . . . 2 . . . 2 . . . Network Status 1 | . . . . . . . . . . . 1 . . . . . . . . . . . . . Load Schematic 2 | . . . . . . . . . . . . . . . . . 1 . . . 1 . . . Build 2 | . . . . . . . . . . . . . . . . . 1 . . . 1 . . . Repair Station Hacks 11 | . . . . . 2 . 4 . . . 1 . . . . . . . 2 . . 2 . . Scan Component 6 | . . . . . 1 . 2 . . . 1 . . . . . . . 1 . . 1 . . Repair 5 | . . . . . 1 . 2 . . . . . . . . . . . 1 . . 1 . . Recycling Unit Hacks . | . . . . . . . . . . . . . . . . . . . . . . . . . Scanalyzer 11 | . . . . . 3 . . . 1 . . . . . . . 1 . 5 . . . . 1 Retrieve Study 11 | . . . . . 3 . . . 1 . . . . . . . 1 . 5 . . . . 1 Garrison Access Hacks 18 | . . . . . 1 . 2 . 2 . 2 . 1 . 2 . . . 2 . . 2 . 4 Unlock Access 8 | . . . . . 1 . 1 . 1 . 1 . 1 . 1 . . . 1 . . 1 . . Seal Access 2 | . . . . . . . . . . . . . . . . . . . . . . . . 2 Coupler Status 8 | . . . . . . . 1 . 1 . 1 . . . 1 . . . 1 . . 1 . 2 Unauthorized Hacks 18 | . 1 . . . 9 . 3 . . . 1 . 1 . . . 1 . 1 . . 1 . . Terminals 13 | . . . . . 8 . 2 . . . . . 1 . . . 1 . . . . 1 . . Botnet 3 | . . . . . 2 . 1 . . . . . . . . . . . . . . . . . Operators 5 | . . . . . 1 . 1 . . . . . 1 . . . 1 . . . . 1 . . Skim 5 | . . . . . 5 . . . . . . . . . . . . . . . . . . . Fabricators 1 | . . . . . . . . . . . 1 . . . . . . . . . . . . . Haulers 1 | . . . . . . . . . . . 1 . . . . . . . . . . . . . Repair Stations . | . . . . . . . . . . . . . . . . . . . . . . . . . Recycling Units 2 | . 1 . . . 1 . . . . . . . . . . . . . . . . . . . Tunnel 2 | . 1 . . . 1 . . . . . . . . . . . . . . . . . . . Scanalyzers . | . . . . . . . . . . . . . . . . . . . . . . . . . Garrison Access 2 | . . . . . . . 1 . . . . . . . . . . . 1 . . . . . Eject 2 | . . . . . . . 1 . . . . . . . . . . . 1 . . . . . Data Cores Recovered 1 | . . . . . . . . . . . . . . . . . 1 . . . . . . . Used . | . . . . . . . . . . . . . . . . . . . . . . . . . Hacking Detections 78 | . 3 1 . . 7 3 9 1 2 1 7 3 3 3 3 1 3 . 4 3 2 10 1 8 Full Trace Events 12 | . 1 . . . . . 2 . . . 1 . 1 . . 1 . . . 2 1 1 . 2 Feedback Events . | . . . . . . . . . . . . . . . . . . . . . . . . . Feedback Blocked . | . . . . . . . . . . . . . . . . . . . . . . . . . Robot Schematics Acquired 4 | . 1 . . . 1 . . . . . . . . . . . . . . . . 2 . . Robots Built 2 | . . . . . . . . . . . . . . . . . 1 . . . 1 . . . Authchips 1 | . . . . . . . . . . . . . . . . . 1 . . . . . . . Time 174 | . . . . . . . . . . . . . . . . . 58 . . . 116 . . . Total Robot Build Rating 6 | . . . . . . . . . . . . . . . . . 3 . . . 3 . . . Part Schematics Acquired 3 | . . . . . . . . . . . . . . . . . . . . . . 3 . . Parts Built . | . . . . . . . . . . . . . . . . . . . . . . . . . Authchips . | . . . . . . . . . . . . . . . . . . . . . . . . . Time . | . . . . . . . . . . . . . . . . . . . . . . . . . Total Part Build Rating . | . . . . . . . . . . . . . . . . . . . . . . . . . Part Studies Acquired 10 | . . . . . 3 . . . 1 . . . . . . . 1 . 4 . . . . 1 Parts Repaired 5 | . . . . . 1 . 2 . . . . . . . . . . . 1 . . 1 . . Time 278 | . . . . . 44 . 98 . . . . . . . . . . . 74 . . 62 . . Parts Recycled . | . . . . . . . . . . . . . . . . . . . . . . . . . Recycled Matter . | . . . . . . . . . . . . . . . . . . . . . . . . . Retrieved Matter . | . . . . . . . . . . . . . . . . . . . . . . . . . Retrieved Components . | . . . . . . . . . . . . . . . . . . . . . . . . . Parts Scanalyzed . | . . . . . . . . . . . . . . . . . . . . . . . . . Part Schematics Acquired . | . . . . . . . . . . . . . . . . . . . . . . . . . Parts Damaged . | . . . . . . . . . . . . . . . . . . . . . . . . . Bothacking | -11 -10 -10 -10 -9 -8 -8 -8 -8 -7 -7 -7 -7 -6 -6 -5 -5 -4 -4 -4 -4 -3 -3 -3 -2 ------------ Run | Yrd Mat Min Exi Min Mat Gar Sto Gar Fac Gar Fac Gar Fac Gar Fac Gar Fac Was Fac Gar Res Qua Gar Res Used RIF Installer 11 | . . . . . . 2 . 1 . 1 . 1 . 2 . 1 . . . 2 . . 1 . Coupler Efficiency 1 | . . . . . . . . . . . . . . . . 1 . . . . . . . . Hotswap 1 | . . . . . . . . . . . . . . . . . . . . . . . 1 . Command Fork 3 | . . . . . . 1 . 1 . . . 1 . . . . . . . . . . . . Zone Cloak 2 | . . . . . . . . . . 1 . . . . . . . . . 1 . . . . Watcher Feeds 1 | . . . . . . . . . . . . . . 1 . . . . . . . . . . Autooverride 1 | . . . . . . . . . . . . . . 1 . . . . . . . . . . Crosswire 1 | . . . . . . . . . . . . . . . . . . . . 1 . . . . Robots Hacked 148 | . . . . . . 1 3 . 1 . 5 5 16 7 5 15 6 . 7 7 7 10 23 30 Non-combat 30 | . . . . . . . 2 . 1 . 2 . 8 . 1 . 2 . 3 . 2 1 . 8 Combat 118 | . . . . . . 1 1 . . . 3 5 8 7 4 15 4 . 4 7 5 9 23 22 Autooverrided 21 | . . . . . . . . . . . . . . 2 . 4 . . . 1 1 1 6 6 Robot Hacks Applied 154 | . . . . . . 1 4 . 3 . 5 6 19 5 10 13 6 . 9 8 10 9 18 28 parse_system 10 | . . . . . . 1 . . . . . . . . . 2 . . . 3 . . . 4 find_chute 2 | . . . . . . . . . . . . . 1 . . . 1 . . . . . . . ignore_repairs 1 | . . . . . . . . . . . . . 1 . . . . . . . . . . . drop_inventory 9 | . . . . . . . . . . . . . 2 . . . 1 . 1 . 1 . . 4 purge_threat 16 | . . . . . . . 1 . 2 . . . 3 . 5 . . . 1 . 3 . . 1 block_reporting 2 | . . . . . . . . . . . . . . . . . . . . . 1 1 . . find_garrison 1 | . . . . . . . . . . . . . . . . . . . 1 . . . . . spike_heat 1 | . . . . . . . . . . . . . . . . 1 . . . . . . . . amplify_resonance 15 | . . . . . . . . . . . 1 2 3 . . 1 1 . 1 2 . . 2 2 reboot_system 4 | . . . . . . . . . . . . . . . . 2 . . . . 1 . . 1 overwrite_iff 7 | . . . . . . . . . . . . 2 1 . . . 1 . 1 1 . . . 1 streamctrl_high 1 | . . . . . . . . . . . . . . 1 . . . . . . . . . . formatsys_low 16 | . . . . . . . 2 . 1 . 2 . 3 . 1 . . . 2 . 1 1 . 3 formatsys_high 69 | . . . . . . . 1 . . . 2 2 5 4 4 7 2 . 2 2 3 7 16 12 Relay Couplers Released 135 | . . . . . . 16 4 4 . 8 . 15 . 24 . 18 . . 3 16 . . 18 9 Ejected 7 | . . . . . . . 4 . . . . . . . . . . . 3 . . . . . Machine Destruction 117 | . . . . . . 12 . . . 8 . 15 . 24 . 18 . . . 16 . . 18 6 Programmers 11 | . . . . . . 4 . 4 . . . . . . . . . . . . . . . 3 Attached 57 | . . . . . . . 3 1 1 . 2 3 6 5 4 7 1 . 1 3 2 5 7 6 Crosswired 16 | . . . . . . . . . . . . . . . . . . . . 6 . . 8 2 Fabnet Peak Effective % . | . . . . . . . . . . . . . . . . . . . . . . . . . Robots Rewired 11 | . . . . . . . . . . . . . . 9 . 2 . . . . . . . . Allies Hacked 17 | . . . . . . . . . . . 2 . . 1 . . 1 . . . 1 8 . 4 Hacks Repelled . | . . . . . . . . . . . . . . . . . . . . . . . . . Allies | -11 -10 -10 -10 -9 -8 -8 -8 -8 -7 -7 -7 -7 -6 -6 -5 -5 -4 -4 -4 -4 -3 -3 -3 -2 -------- Run | Yrd Mat Min Exi Min Mat Gar Sto Gar Fac Gar Fac Gar Fac Gar Fac Gar Fac Was Fac Gar Res Qua Gar Res Total Allies 207 | . . . . . . 2 14 . 3 4 6 5 15 20 7 18 4 . 7 7 9 15 34 37 Largest Group 21 | . . . . . . 2 10 . 2 2 5 5 6 12 7 8 5 . 4 4 6 9 21 21 Highest-Rated Group 1203 | . . . . . . 70 173 . 58 34 96 81 209 432 333 374 284 . 132 157 283 450 1203 1188 Highest-Rated Ally 183 | . . . . . . 39 29 . 32 26 29 23 114 93 142 142 142 . 49 49 64 64 116 183 Total Orders 47 | . . . . . . . 1 . 2 4 2 13 3 5 . 2 1 . 1 . 3 . 7 3 STAY 17 | . . . . . . . . . 1 1 . 6 1 2 . 1 . . . . 1 . 3 1 ROAM 2 | . . . . . . . . . . . . . . . . . . . . . . . 2 . FOLLOW 8 | . . . . . . . . . 1 . . 1 . 2 . 1 . . . . 1 . 2 . AID 14 | . . . . . . . 1 . . . 1 6 2 . . . 1 . 1 . 1 . . 1 DROP 3 | . . . . . . . . . . . 1 . . 1 . . . . . . . . . 1 RETURN 3 | . . . . . . . . . . 3 . . . . . . . . . . . . . . Ally Attacks 1183 | . . . . . . 44 97 16 12 53 22 17 82 163 6 154 42 . 14 17 23 55 129 237 Total Damage 34226 | . . . . . . 1642 1398 899 130 408 315 191 1444 5163 259 3855 1694 . 191 486 417 1674 5053 9007 Kills 199 | . . . . . . 11 13 8 . 5 2 3 17 33 2 24 12 . 2 3 4 5 15 40 Allies Corrupted 17 | . . . . . . . . . . 1 . . . . . 2 . . . . . 6 . 8 Allies Melted 4 | . . . . . . 1 . . . . . . . 2 . . . . . . . . . 1 Turrets Deployed 3 | . . . . . . 1 . 1 . . . . . 1 . . . . . . . . . . Field Lobotomies 3 | . . . . . . . . . . . . . . . . . . . . . . . . 3 Intel | -11 -10 -10 -10 -9 -8 -8 -8 -8 -7 -7 -7 -7 -6 -6 -5 -5 -4 -4 -4 -4 -3 -3 -3 -2 ------- Run | Yrd Mat Min Exi Min Mat Gar Sto Gar Fac Gar Fac Gar Fac Gar Fac Gar Fac Was Fac Gar Res Qua Gar Res Active Infowar (turns) 14575 | . . . . . . . 32 149 334 1549 494 1143 60 1649 447 1518 493 228 535 747 1100 1356 1305 1436 Jamming 14575 | . . . . . . . 32 149 334 1549 494 1143 60 1649 447 1518 493 228 535 747 1100 1356 1305 1436 Robot Analysis Total . | . . . . . . . . . . . . . . . . . . . . . . . . . Derelict Logs Recovered 2 | . . 1 . 1 . . . . . . . . . . . . . . . . . . . . Drone Launches 56 | . . . . . . . . . 5 51 . . . . . . . . . . . . . . Drone Recoveries 50 | . . . . . . . . . 5 45 . . . . . . . . . . . . . . Exploration | -11 -10 -10 -10 -9 -8 -8 -8 -8 -7 -7 -7 -7 -6 -6 -5 -5 -4 -4 -4 -4 -3 -3 -3 -2 ------------- Run | Yrd Mat Min Exi Min Mat Gar Sto Gar Fac Gar Fac Gar Fac Gar Fac Gar Fac Was Fac Gar Res Qua Gar Res Turns Passed 30709 | 60 1171 1055 506 1317 3226 1563 1764 636 334 1768 1294 1262 1203 2526 452 1652 677 630 756 1102 1100 1575 1311 1769 Spaces Moved 13645 | 33 628 604 214 408 1142 656 647 267 137 885 669 609 625 1141 230 643 243 284 345 525 357 789 668 896 Core 4 | 4 . . . . . . . . . . . . . . . . . . . . . . . . Treads 13641 | 29 628 604 214 408 1142 656 647 267 137 885 669 609 625 1141 230 643 243 284 345 525 357 789 668 896 Legs . | . . . . . . . . . . . . . . . . . . . . . . . . . Wheels . | . . . . . . . . . . . . . . . . . . . . . . . . . Hover . | . . . . . . . . . . . . . . . . . . . . . . . . . Flight . | . . . . . . . . . . . . . . . . . . . . . . . . . Fastest Speed 50 | 50 160 160 160 320 200 200 200 200 200 160 160 160 160 160 160 160 163 163 163 163 160 160 163 157 Average Speed 183 | 146 160 160 234 320 238 200 200 200 200 165 160 160 160 171 164 219 216 163 163 163 161 162 163 158 Slowest Speed 320 | 160 160 160 320 320 240 200 200 200 200 213 160 160 160 240 240 240 240 163 163 163 200 225 163 163 Overloaded Moves . | . . . . . . . . . . . . . . . . . . . . . . . . . Propulsion Burnouts . | . . . . . . . . . . . . . . . . . . . . . . . . . Robots Hopped 2 | . . . . . . 1 . . . . . . . 1 . . . . . . . . . . Potential Cave-ins . | . . . . . . . . . . . . . . . . . . . . . . . . . Cave-ins Triggered . | . . . . . . . . . . . . . . . . . . . . . . . . . Teleports 2 | . . . . . . . . . . . . . . . . . . . . . . 1 . 1 Exploration Rate (%) 58 | 5 99 99 60 81 86 83 89 38 6 86 23 84 24 90 10 85 14 87 20 69 14 91 76 51 Regions Visited 24 Branch Regions 5 Pre-discovered Areas 5 | . 1 1 1 . 2 . . . . . . . . . . . . . . . . . . . Known Exits Taken 9 | . . . . . 1 . 1 . 1 . 1 . 1 . 1 . . . 1 . 1 1 . . Unknown Exits Taken 5 | 1 1 1 1 1 . . . . . . . . . . . . . . . . . . . . Scrap Searched 1 | . . 1 . . . . . . . . . . . . . . . . . . . . . . Spaces Dug 33 | . . . . . 5 4 . . . . . . 3 1 1 . 1 . 2 . . 4 1 11 Terrain Destroyed 579 | . 101 . . 23 5 55 . . . 91 53 43 21 12 4 3 6 1 50 8 1 19 58 25 Melee 9 | . . . . . 5 4 . . . . . . . . . . . . . . . . . . Projectile 108 | . . . . . . . . . . 2 8 2 8 12 4 3 6 1 6 8 1 19 3 25 AOE 462 | . 101 . . 23 . 51 . . . 89 45 41 13 . . . . . 44 . . . 55 . Terrain Rammed . | . . . . . . . . . . . . . . . . . . . . . . . . . Walls Destroyed . | . . . . . . . . . . . . . . . . . . . . . . . . . Machines Disabled . | . . . . . . . . . . . . . . . . . . . . . . . . . Actions | -11 -10 -10 -10 -9 -8 -8 -8 -8 -7 -7 -7 -7 -6 -6 -5 -5 -4 -4 -4 -4 -3 -3 -3 -2 --------- Run | Yrd Mat Min Exi Min Mat Gar Sto Gar Fac Gar Fac Gar Fac Gar Fac Gar Fac Was Fac Gar Res Qua Gar Res Total 17407 | 41 726 643 219 413 1432 778 984 320 185 1065 798 765 747 1493 286 796 359 446 486 654 856 959 838 1118 Wait 1508 | . 14 . . . 113 8 220 . 18 45 24 30 19 108 19 14 65 132 68 23 460 32 66 30 Move 13624 | 33 627 603 213 407 1142 653 646 266 137 884 669 608 625 1138 229 642 243 283 344 524 356 789 667 896 Hop 2 | . . . . . . 1 . . . . . . . 1 . . . . . . . . . . Pick Up 190 | 2 13 3 5 . 19 5 4 6 3 12 8 11 3 25 1 11 4 4 5 11 5 11 10 9 Fast Attach 84 | 6 2 1 . . 5 . 5 1 2 5 5 2 . 14 . 4 2 5 2 2 . 5 5 11 Attach 90 | . . . . . 6 1 2 2 3 1 3 5 8 9 4 4 3 1 3 6 3 5 3 18 Detach 35 | . 2 . . . . . . 1 2 6 1 2 . 12 . 1 . . 1 3 . . . 4 Swap 306 | . 3 5 1 1 15 20 23 5 3 10 15 20 19 23 6 18 15 5 16 10 6 29 18 20 Drop 170 | . 6 3 . . 18 9 5 5 6 21 10 8 1 20 . 6 3 12 4 4 1 10 8 10 Fire 1241 | . 53 23 . 3 106 59 58 25 10 77 54 76 65 137 24 81 23 4 39 71 18 75 57 103 Melee 42 | . . . . . 5 14 17 6 . . . . . . . . . . . . . . . . Ram 1 | . . . . . . . . . . . . . . . . . . . . . . . . 1 Kick . | . . . . . . . . . . . . . . . . . . . . . . . . . Crush 58 | . 6 5 . 2 3 . 2 . . 2 6 1 5 1 2 . . . 3 . 6 2 4 8 Escape Stasis 25 | . . . . . . 8 . 3 . . . . . 2 . 12 . . . . . . . . Rewire 31 | . . . . . . . 2 . 1 2 3 2 2 3 1 3 1 . 1 . 1 1 . 8 Trap . | . . . . . . . . . . . . . . . . . . . . . . . . . Miscellaneous . | . . . . . . . . . . . . . . . . . . . . . . . . . Route ------- -11/Scrapyard -10/Materials (discovered 5 exits: [*Mat x3] / *Min / [*Sub]) -10/Mines (discovered 3 exits: [*Mat x2] / *Exi) -10/Exiles -9/Mines -8/Materials (discovered 5 exits: *Fac x3 / *Sto / Gar) -8/Garrison (discovered 4 exits: *Sto x4) -8/Storage (discovered 2 exits: *Fac / Gar) -8/Garrison (discovered 3 exits: *Fac x3) -7/Factory (discovered 3 exits: Fac / Low / Gar) -7/Garrison (discovered 4 exits: *Fac x3 / *Fac) -7/Factory (discovered 5 exits: *Fac x3 / *Low / Gar) -7/Garrison (discovered 3 exits: *Fac x3) -6/Factory (discovered 3 exits: [*Low] / [*Ext] / Gar) -6/Garrison (discovered 3 exits: *Fac x3) -5/Factory (discovered 2 exits: *Fac / Gar) -5/Garrison (discovered 3 exits: *Fac x3) -4/Factory -4/Waste -4/Factory (discovered 2 exits: [*Upp] / Gar) -4/Garrison (discovered 3 exits: *Res x3) -3/Research (discovered 2 exits: *Qua x2) -3/Quarantine (discovered 2 exits: *Res / Gar) -3/Garrison (discovered 3 exits: *Res x3) -2/Research History --------- Turn | Location | Event 30 | -11/Scrapyard | Discovered new exit (range 15) 61 | -11/Scrapyard | Entered Materials 287 | -10/Materials | Discovered new exit (range 16) 345 | -10/Materials | Build established: Mutant 448 | -10/Materials | Discovered new exit (range 15) 496 | -10/Materials | Central database locked down 505 | -10/Materials | Discovered new exit (range 8) 561 | -10/Materials | Derelicts attacked the area 694 | -10/Materials | Discovered new exit (range 3) 963 | -10/Materials | Discovered new exit (range 16) 1232 | -10/Materials | Entered Mines 1489 | -10/Mines | Discovered new exit (range 9) 1676 | -10/Mines | Learned location of Storage (-8) 1956 | -10/Mines | Found the Drone Emporium 1964 | -10/Mines | Found Prototype Device 1965 | -10/Mines | Identified Splice Drone Bay 2036 | -10/Mines | Learned Materials stockpile data 2045 | -10/Mines | Discovered new exit (range 15) 2277 | -10/Mines | Deemed a non-threat by the Exiles lab entrance 2279 | -10/Mines | Discovered new exit (range 5) 2287 | -10/Mines | Entered Exiles 2324 | -10/Exiles | Met 8R-AWN 2355 | -10/Exiles | Met EX-HEX 2398 | -10/Exiles | Met EX-BIN 2417 | -10/Exiles | Aligned with FarCom system 2419 | -10/Exiles | Given EX-Vault access code 2455 | -10/Exiles | Opened EX-Vault 2471 | -10/Exiles | Found Field Lobotomy Kit 2485 | -10/Exiles | Found Deploy-a-Sentry 2489 | -10/Exiles | Found Deploy-a-Sentry 2494 | -10/Exiles | Found Deploy-a-Sentry 2498 | -10/Exiles | Found Latent Energy Streamer 2560 | -10/Exiles | Warned to stay clear of 0b10 Research branches 2656 | -10/Exiles | Met EX-DEC 2668 | -10/Exiles | Learned location of Zion (-7) 2768 | -10/Exiles | Discovered new exit (range 10) 2793 | -10/Exiles | Stole three prototypes: Latent Energy Streamer, Field Lobotomy Kit, Deploy-a-Sentry 2793 | -10/Exiles | Entered Mines 2886 | -9/Mines | Found a hidden stash of uninstalled traps 3883 | -9/Mines | Discovered new exit (range 12) 4015 | -9/Mines | Assembled infested the area 4020 | -9/Mines | Assisted by a Guerilla fighting off Assembled 4110 | -9/Mines | Entered Materials 4110 | -8/Materials | Evolved 4 slots: Propulsion x2, Utility x2 4111 | -8/Materials | Identified exit to Storage 4456 | -8/Materials | Met 7R-MNS 4544 | -8/Materials | Build established: Scavenger-Mutant 4545 | -8/Materials | Discovered new exit (range 15) 4756 | -8/Materials | Garrison activated, responded to threat 5304 | -8/Materials | Identified exit to Factory 5371 | -8/Materials | Learned Factory garrison access intel 5428 | -8/Materials | Learned Storage stockpile data 5474 | -8/Materials | Learned location of 1 exit from Lower Caves 5512 | -8/Materials | Learned location of 2 exits from Factory 5542 | -8/Materials | Learned 4 Recycling zone layouts 5564 | -8/Materials | Learned location of Recycling (-8) 5598 | -8/Materials | Learned Factory recycling unit intel 5643 | -8/Materials | Learned 4 Lower Caves zone layouts 6509 | -8/Materials | Repaired Hrd. Heavy Armor Plating 7243 | -8/Materials | Central database locked down 7336 | -8/Materials | Identified exit to Garrison 7336 | -8/Materials | Entered Garrison 7399 | -8/Garrison | Rescued a captive Derelict 7400 | -8/Garrison | Rescued a captive Derelict 7442 | -8/Garrison | Triggered checkpoint 7476 | -8/Garrison | Garrison Relay disabled 7502 | -8/Garrison | Triggered checkpoint 7636 | -8/Garrison | DAS Turret deployed 7642 | -8/Garrison | Triggered checkpoint 7770 | -8/Garrison | Triggered checkpoint 7930 | -8/Garrison | Triggered checkpoint 7968 | -8/Garrison | Garrison Relay disabled 8030 | -8/Garrison | Discovered exit to Storage (range 14) 8308 | -8/Garrison | Triggered checkpoint 8397 | -8/Garrison | Installed Relay Interface Framework 8437 | -8/Garrison | Garrison Relay disabled 8549 | -8/Garrison | Expanded RIF knowledge: Command Fork 8661 | -8/Garrison | Discovered exit to Storage (range 8) 8679 | -8/Garrison | Learned Storage security intel 8891 | -8/Garrison | Discovered exit to Storage (range 5) 8899 | -8/Garrison | Entered Storage 8901 | -8/Storage | FarCom data flow suspended 8912 | -8/Storage | Assisted by bots powering up and referring to "LRC-V3" 9211 | -8/Storage | Build established: Commander-Mutant 9433 | -8/Storage | Lost 3 allies 9550 | -8/Storage | Lost 5 allies 9864 | -8/Storage | Build established: Scavenger-Mutant 10164 | -8/Storage | Garrison activated, responded to threat 10284 | -8/Storage | Discovered exit to Factory (range 5) 10437 | -8/Storage | Core integrity fell below 50% 10534 | -8/Storage | Repaired Hrd. Medium Armor Plating 10595 | -8/Storage | Repaired Enh. Autogun 10650 | -8/Storage | Identified exit to Garrison 10663 | -8/Storage | Entered Garrison 10687 | -8/Garrison | Discovered exit to Factory (range 55) 10687 | -8/Garrison | Discovered exit to Factory (range 66) 10687 | -8/Garrison | Discovered exit to Factory (range 54) 10758 | -8/Garrison | DAS Turret deployed 10778 | -8/Garrison | Triggered checkpoint 10779 | -8/Garrison | Triggered checkpoint 11089 | -8/Garrison | Triggered checkpoint 11159 | -8/Garrison | Expanded RIF knowledge: Command Fork 11190 | -8/Garrison | Build established: Bothacker-Mutant 11299 | -8/Garrison | Entered Factory 11299 | -7/Factory | Evolved 2 slots: Utility x2 11300 | -7/Factory | Identified exit to Factory 11300 | -7/Factory | Identified exit to Lower Caves 11301 | -7/Factory | Loaded intel: 6 recycling unit locations 11302 | -7/Factory | Loaded intel: 3 garrison access locations 11633 | -7/Factory | Identified exit to Garrison 11633 | -7/Factory | Entered Garrison 11633 | -7/Garrison | Accompanied by 1 ally 11683 | -7/Garrison | Triggered checkpoint 11699 | -7/Garrison | Triggered checkpoint 11723 | -7/Garrison | Triggered checkpoint 12130 | -7/Garrison | Discovered exit to Factory (range 13) 12192 | -7/Garrison | Triggered checkpoint 12283 | -7/Garrison | Discovered new exit (range 6) 12357 | -7/Garrison | Triggered checkpoint 12404 | -7/Garrison | H-XX Assembler disabled 12430 | -7/Garrison | Lost 3 allies 12620 | -7/Garrison | Discovered exit to Factory (range 11) 12713 | -7/Garrison | Garrison Relay disabled 12868 | -7/Garrison | Expanded RIF knowledge: Zone Cloak 13006 | -7/Garrison | Discovered exit to Factory (range 14) 13069 | -7/Garrison | Triggered checkpoint 13164 | -7/Garrison | Found Unknown Protection 13164 | -7/Garrison | Identified Hvy. Reflective Plating 13189 | -7/Garrison | Build established: Botlord-Mutant 13401 | -7/Garrison | Entered Factory 13582 | -7/Factory | Discovered exit to Factory (range 14) 13801 | -7/Factory | First assault squad dispatched 13848 | -7/Factory | Discovered exit to Lower Caves (range 5) 13966 | -7/Factory | Discovered exit to Factory (range 14) 14333 | -7/Factory | Discovered exit to Factory (range 7) 14358 | -7/Factory | Lost 3 allies 14695 | -7/Factory | Identified exit to Garrison 14695 | -7/Factory | Entered Garrison 14695 | -7/Garrison | Accompanied by 1 ally 14771 | -7/Garrison | Triggered checkpoint 14839 | -7/Garrison | Garrison Relay disabled 15011 | -7/Garrison | Triggered checkpoint 15012 | -7/Garrison | Triggered checkpoint 15191 | -7/Garrison | Triggered checkpoint 15266 | -7/Garrison | Build established: Bothacker-Mutant 15269 | -7/Garrison | Discovered exit to Factory (range 10) 15315 | -7/Garrison | Triggered checkpoint 15330 | -7/Garrison | Garrison Relay disabled 15417 | -7/Garrison | Triggered checkpoint 15491 | -7/Garrison | Discovered exit to Factory (range 8) 15515 | -7/Garrison | Triggered checkpoint 15547 | -7/Garrison | Garrison Relay disabled 15567 | -7/Garrison | Discovered exit to Factory (range 25) 15567 | -7/Garrison | Discovered exit to Factory (range 58) 15567 | -7/Garrison | Discovered exit to Factory (range 35) 15626 | -7/Garrison | Build established: Botlord-Mutant 15747 | -7/Garrison | Triggered checkpoint 15805 | -7/Garrison | Expanded RIF knowledge: Command Fork 15845 | -7/Garrison | Garrison Relay disabled 15957 | -7/Garrison | Entered Factory 15957 | -6/Factory | Accompanied by 3 allies 15957 | -6/Factory | Evolved 2 slots: Power x1, Utility x1 16281 | -6/Factory | Discovered new exit (range 8) 16480 | -6/Factory | Lost 3 allies 16784 | -6/Factory | Discovered new exit (range 6) 16987 | -6/Factory | Cargo convoy interrupted 17031 | -6/Factory | Destroyed 10 combat bots 17106 | -6/Factory | Build established: Bothacker-Mutant 17140 | -6/Factory | Identified exit to Garrison 17160 | -6/Factory | Entered Garrison 17160 | -6/Garrison | Accompanied by 4 allies 17166 | -6/Garrison | Found Prototype Launcher 17166 | -6/Garrison | Identified Tesla Bomb Launcher 17170 | -6/Garrison | Found Prototype Device 17170 | -6/Garrison | Identified Exp. Shield Generator 17173 | -6/Garrison | Found Prototype Processor 17173 | -6/Garrison | Identified Exp. Signal Interpreter 17324 | -6/Garrison | Expanded RIF knowledge: Autooverride 17357 | -6/Garrison | Spotted B-75 Beast 17362 | -6/Garrison | Triggered checkpoint 17363 | -6/Garrison | DAS Turret deployed 17375 | -6/Garrison | Destroyed B-75 Beast 17396 | -6/Garrison | Triggered checkpoint 17438 | -6/Garrison | Triggered checkpoint 17471 | -6/Garrison | Triggered checkpoint 17524 | -6/Garrison | Lost 3 parts (2p1u) 17598 | -6/Garrison | Garrison Relay disabled 17878 | -6/Garrison | Garrison Relay disabled 17917 | -6/Garrison | Build established: Botlord-Mutant 18006 | -6/Garrison | Triggered checkpoint 18230 | -6/Garrison | Triggered checkpoint 18345 | -6/Garrison | Rescued a captive Derelict 18347 | -6/Garrison | Rescued a captive Derelict 18370 | -6/Garrison | Discovered new exit (range 14) 18550 | -6/Garrison | Triggered checkpoint 18568 | -6/Garrison | Garrison Relay disabled 18704 | -6/Garrison | Triggered checkpoint 18726 | -6/Garrison | Garrison Relay disabled 18755 | -6/Garrison | Lost 3 allies 18757 | -6/Garrison | Learned Factory security intel 18795 | -6/Garrison | Discovered new exit (range 10) 18809 | -6/Garrison | Spotted B-75 Beast 18809 | -6/Garrison | Spotted B-75 Beast 18847 | -6/Garrison | Destroyed B-75 Beast 18886 | -6/Garrison | Lost 4 allies 18962 | -6/Garrison | Destroyed B-75 Beast 19283 | -6/Garrison | Discovered new exit (range 10) 19294 | -6/Garrison | Triggered checkpoint 19339 | -6/Garrison | Garrison Relay disabled 19355 | -6/Garrison | Lost 3 allies 19377 | -6/Garrison | Garrison Relay disabled 19528 | -6/Garrison | Expanded RIF knowledge: Watcher Feeds 19581 | -6/Garrison | Spotted Striker 19584 | -6/Garrison | Spotted Striker 19686 | -6/Garrison | Entered Factory 19686 | -5/Factory | Evolved 2 slots: Utility x2 20048 | -5/Factory | Discovered new exit (range 7) 20109 | -5/Factory | Identified exit to Garrison 20124 | -5/Factory | Garrison activated, responded to threat 20138 | -5/Factory | Entered Garrison 20138 | -5/Garrison | Accompanied by 7 allies 20162 | -5/Garrison | Triggered checkpoint 20193 | -5/Garrison | Garrison Relay disabled 20219 | -5/Garrison | Lost 3 allies 20253 | -5/Garrison | Triggered checkpoint 20301 | -5/Garrison | Lost 3 allies 20308 | -5/Garrison | Garrison Relay disabled 20477 | -5/Garrison | Spotted B-75 Beast 20488 | -5/Garrison | Triggered checkpoint 20503 | -5/Garrison | Allies destroyed B-75 Beast 20554 | -5/Garrison | Triggered checkpoint 20564 | -5/Garrison | Triggered checkpoint 20579 | -5/Garrison | Triggered checkpoint 20636 | -5/Garrison | Triggered checkpoint 20686 | -5/Garrison | Garrison Relay disabled 20728 | -5/Garrison | Triggered checkpoint 20784 | -5/Garrison | Discovered new exit (range 12) 20786 | -5/Garrison | Spotted B-90 Cyclops 20831 | -5/Garrison | Destroyed B-90 Cyclops 20838 | -5/Garrison | Lost 3 allies 20860 | -5/Garrison | Spotted B-86 Titan 21164 | -5/Garrison | Triggered checkpoint 21191 | -5/Garrison | Garrison Relay disabled 21352 | -5/Garrison | Expanded RIF knowledge: Coupler Efficiency 21395 | -5/Garrison | Discovered new exit (range 3) 21678 | -5/Garrison | Discovered new exit (range 12) 21684 | -5/Garrison | Triggered checkpoint 21730 | -5/Garrison | Garrison Relay disabled 21737 | -5/Garrison | Lost 4 allies 21790 | -5/Garrison | Entered Factory 21790 | -4/Factory | Accompanied by 4 allies 21790 | -4/Factory | Evolved 2 slots: Propulsion x1, Utility x1 21945 | -4/Factory | Fabricated M-28 Smith (x1) 21985 | -4/Factory | Garrison activated, responded to threat 22040 | -4/Factory | Lost 3 allies 22346 | -4/Factory | Central database locked down 22467 | -4/Factory | Sucked down chute 22467 | -4/Factory | Entered Waste 22467 | -4/Waste | The area was eerily silent 22637 | -4/Waste | A Compactor rumbled back to life 22641 | -4/Waste | Spotted C-40 Crusher 22647 | -4/Waste | Destroyed C-40 Crusher 22687 | -4/Waste | Discovered new exit (range 11) 22867 | -4/Waste | Found Prototype Launcher 22867 | -4/Waste | Identified Gui. Micro-nuke Launcher 23097 | -4/Waste | Entered Factory 23592 | -4/Factory | Discovered new exit (range 26) 23684 | -4/Factory | Repaired Adv. Heavy Siege Treads 23760 | -4/Factory | Central database locked down 23839 | -4/Factory | Identified exit to Garrison 23853 | -4/Factory | Entered Garrison 23853 | -4/Garrison | Accompanied by 4 allies 23943 | -4/Garrison | Triggered checkpoint 23998 | -4/Garrison | Garrison Relay disabled 24027 | -4/Garrison | Rescued a captive Derelict 24114 | -4/Garrison | Spotted B-86 Titan 24164 | -4/Garrison | Lost 8 allies 24166 | -4/Garrison | Destroyed B-86 Titan 24184 | -4/Garrison | Lost 3 parts (3u) 24276 | -4/Garrison | Discovered new exit (range 8) 24317 | -4/Garrison | Garrison Relay disabled 24545 | -4/Garrison | Expanded RIF knowledge: Zone Cloak 24589 | -4/Garrison | Expanded RIF knowledge: Crosswire 24598 | -4/Garrison | Discovered new exit (range 12) 24602 | -4/Garrison | Triggered checkpoint 24620 | -4/Garrison | Garrison Relay disabled 24747 | -4/Garrison | Triggered checkpoint 24790 | -4/Garrison | Triggered checkpoint 24819 | -4/Garrison | Garrison Relay disabled 24875 | -4/Garrison | Discovered new exit (range 12) 24955 | -4/Garrison | Entered Research 24955 | -3/Research | Evolved 2 slots: Power x1, Propulsion x1 25016 | -3/Research | Identified exit to Quarantine 25211 | -3/Research | Fabricated M-28 Smith (x1) 26055 | -3/Research | Entered Quarantine 26055 | -3/Quarantine | Accompanied by 4 allies 26197 | -3/Quarantine | Cryocooling Duct disabled 26212 | -3/Quarantine | Ambient heat levels rising (+20) 26212 | -3/Quarantine | Non-combat units ordered to evacuate 26231 | -3/Quarantine | Found Exp. ECM Suite 26421 | -3/Quarantine | P-80 Master assimilated allied Warden 8b 26443 | -3/Quarantine | P-80 Master assimilated allied Veteran 8f 26461 | -3/Quarantine | Lost 4 allies 26511 | -3/Quarantine | Lost 3 allies 26523 | -3/Quarantine | Discovered new exit (range 37) 26674 | -3/Quarantine | Found Alien Artifact 26748 | -3/Quarantine | System corruption reached 10% 27009 | -3/Quarantine | Found Prototype Device 27009 | -3/Quarantine | Identified Exp. Thermal Shield 27277 | -3/Quarantine | Found Alien Artifact 27277 | -3/Quarantine | Identified Transdimensional Reconstructor 27277 | -3/Quarantine | Warped through subspace 27393 | -3/Quarantine | Repaired Matter Neutralizer+? 27439 | -3/Quarantine | P-80 Master assimilated allied Veteran 8j 27490 | -3/Quarantine | Lost 4 allies 27511 | -3/Quarantine | Found Transdimensional Reconstructor 27628 | -3/Quarantine | Identified exit to Garrison 27630 | -3/Quarantine | Entered Garrison 27630 | -3/Garrison | Accompanied by 1 ally 27658 | -3/Garrison | Expanded RIF knowledge: Hotswap 27716 | -3/Garrison | Triggered checkpoint 27727 | -3/Garrison | Garrison Relay disabled 27771 | -3/Garrison | Spotted B-86 Titan 27796 | -3/Garrison | Destroyed 8 combat bots 27806 | -3/Garrison | Assimilated Titan 8a with formatsys_high 27871 | -3/Garrison | Triggered checkpoint 27873 | -3/Garrison | Spotted B-86 Titan 27881 | -3/Garrison | Assimilated Titan 8b with formatsys_high 27882 | -3/Garrison | Triggered checkpoint 27890 | -3/Garrison | Triggered checkpoint 27908 | -3/Garrison | Triggered checkpoint 27929 | -3/Garrison | Lost 8 allies 27958 | -3/Garrison | Discovered new exit (range 12) 27996 | -3/Garrison | Triggered checkpoint 28015 | -3/Garrison | Garrison Relay disabled 28180 | -3/Garrison | Triggered checkpoint 28230 | -3/Garrison | Garrison Relay disabled 28280 | -3/Garrison | Triggered checkpoint 28314 | -3/Garrison | Garrison Relay disabled 28364 | -3/Garrison | Discovered new exit (range 14) 28390 | -3/Garrison | Triggered checkpoint 28549 | -3/Garrison | Discovered new exit (range 10) 28568 | -3/Garrison | Triggered checkpoint 28582 | -3/Garrison | Triggered checkpoint 28765 | -3/Garrison | Spotted B-86 Titan 28765 | -3/Garrison | Spotted B-86 Titan 28792 | -3/Garrison | Allies destroyed B-86 Titan 28796 | -3/Garrison | Allies destroyed B-86 Titan 28809 | -3/Garrison | Found Unknown Device 28809 | -3/Garrison | Identified Adv. Force Booster 28941 | -3/Garrison | Entered Research 28941 | -2/Research | Accompanied by 17 allies 28941 | -2/Research | Evolved 2 slots: Utility x1, Weapon x1 29242 | -2/Research | Build established: Botlord-Tank 29375 | -2/Research | Lost 5 allies 29425 | -2/Research | Found Prototype Device 29425 | -2/Research | Identified Exp. Transmission Jammer 29441 | -2/Research | First assault squad dispatched 29637 | -2/Research | Lost 4 allies 29812 | -2/Research | Lost 14 allies 29857 | -2/Research | Spotted B-90 Cyclops 29859 | -2/Research | Assimilated Cyclops 9a with formatsys_high 30004 | -2/Research | Unchained authorized (DW-4LL) 30179 | -2/Research | Lost 7 allies 30196 | -2/Research | P-80 Master assimilated allied Swordsman 9c 30232 | -2/Research | Lost 3 allies 30341 | -2/Research | DW-4LL burst out of a wall 30341 | -2/Research | Warped through subspace 30345 | -2/Research | Lost 3 allies 30365 | -2/Research | System corruption reached 10% 30387 | -2/Research | System corruption reached 30% 30421 | -2/Research | Lost 12 parts (2p10u) 30641 | -2/Research | Lost 4 parts (1p1u2w) 30685 | -2/Research | DW-4LL burst out of a wall 30688 | -2/Research | Spotted B-90 Cyclops 30692 | -2/Research | Assimilated B-90 Cyclops with FLK Orb 30705 | -2/Research | Assimilated G-73 Enforcer with FLK Orb 30708 | -2/Research | Assimilated B-74 Champion with FLK Orb 30711 | -2/Research | System corrupted Last Messages --------------- 30704_ Relay Coupler [NC] destroyed. 30704_ >> Watcher Feeds: All visual feed links lost. 30704_ System corrupted by crushing effect (+2). 30705_ G-73 Enforcer assimilated. 30706_ Enh. Nova Cannon+ destroyed. 30706_ System corrupted by crushing effect (+5). 30706_ Adv. Coolant Injector destroyed. 30706_ System corrupted by crushing effect (+5). 30707_ Enforcer 9k suffers critical hit (Smash). 30707_ Enforcer 9k system corrupted by crushing effect. 30708_ Enforcer 9k system terminally corrupted. 30708_ B-74 Champion assimilated. 30709_ Destroyed Mining Laser. 30709_ T-07 Excavator destroyed. 30709_ Field Lobotomy Kit destroyed. 30709_ System corrupted by crushing effect (+3). 30710_ Cyclops 9b activates siege mode. 30710_ Thermal Shield destroyed. 30710_ System corrupted by crushing effect (+3). 30711_ Cogmind system terminally corrupted. Map ----- +----------------------------------------------------+ | ???# #???? + #??????????????? | | ???# #???# ########### #%% #??????????#???? | | ???# #??????????????####### # #????????? #???? | | ???# #??????????? # ###+###### ####? | | ???# #??????????## ?# ^ #? | | ???# #???????????# "?"S""" #% #? | | ####+####????????? """ """ #! ^ #? | | #????????# + ^ #? | | #????????# # #### #######+#? | | " "" #????????# # #??# #????????? | | " "" ####+################# #??# +????????? | | " S" # #??# #????????? | | """ + #??# #????????? | | """ # ####+##########? | | " """ + # #? | | " ####+#################% # #? | | " # ## # # #? | | # ## # # #? | | # == ## # # #? | | ######### = ## # # #? | | #####???# ## " "##############? | | ???# ## # #??????????????? | | ??# ## # #??????????????? | | G"" ??# ! ## # #??????????????? | | " ?#/################+#;; #??????????????? | | " # t @ 8 #??????????????? | | + ib #??????????????? | | # g #??????????????? | | " """ / g * " " +??????????????? | | " """ ##############!%! "T"" #??????????????? | | " """ # #??#BB= "" "" #??????????????? | | + #??#BB [#??????????????? | | # """ #####; ! #??????????????? | | ######### """ + #??????????????? | | ????????# """ # !*! #??????????????? | | ????????# # **! +??????????????? | | ????????# # = *!! #??????????????? | | ????????########## #??????????????? | | ?????????????????# #??????????????? | | ???????????????? #??????????????? | | ??????????????? #??????????????? | | ?????????????? == #??????????????? | | ????????????? =! #??????????????? | | ???????????? ######################??????????????? | | ??????????? ?????????????????????????????????????? | | ?????????? ??????????????????????????????????????? | | ???????? ???????????????????????????????????????? | | ??????? ????????????????????????????????????????? | | ??????? ?????????????????????????????????????????? | | ?????????????????????????????????????????????????? | +----------------------------------------------------+ Best States ------------- Heat Dissipation 165 Coolant Potential 100 Energy Generation 63 Energy Capacity 815 Matter Stores 300 Matter Capacity 300 Sight Range 16 Terrain Scan Density 10 Jamming Range 16 Base Temperature (-) 200 Armor Coverage 1200 Resistance: TH 30 Evasion (%) 40 Melee Accuracy 8 Recoil Reduction 6 Energy Filtering 50 Force Boost 40 Offensive Hacking 10 Defensive Hacking 10 Relay Coupler Types 9 Relay Coupler Value 134 Authchip Count 1 Item Schematics ----------------- Adv. EM Shield | -3/Quarantine | Archive Prc. Matter Filter | -3/Quarantine | Archive Hvy. Tesla Rifle | -3/Quarantine | Archive Robot Schematics ------------------ M-13 Machinist | -10/Materials | Hacked M-28 Smith | -8/Materials | Hacked M-36 Artificer | -3/Quarantine | Archive G-67 Veteran | -3/Quarantine | Archive Fabricated ------------ M-28 Smith | x1 | -4/Factory | Authchip M-28 Smith | x1 | -3/Research Repaired ---------- Hrd. Heavy Armor Plating | 23% | -8/Materials Hrd. Medium Armor Plating | 4% | -8/Storage Enh. Autogun | 63% | -8/Storage Adv. Heavy Siege Treads | 18% | -4/Factory Matter Neutralizer | 4% | -3/Quarantine Studied --------- Lgt. Treads | -8/Materials | Hacked Arm. Treads | -8/Materials | Hacked Hvy. Assault Rifle | -8/Materials | Hacked Remote Datajack | -7/Factory | Hacked Imp. Remote Datajack | -4/Factory | Hacked HERF Cannon | -4/Factory | Hacked Antimatter Reactor | -4/Factory | Hacked Matter Neutralizer | -4/Factory | Hacked Imp. Heavy Treads | -4/Factory | Hacked Enh. Nova Cannon | -2/Research | Hacked Alien Tech Used ----------------- Transdimensional Reconstructor Achievements -------------- None Challenges ------------ None Game ------ Seed ReflectiveSeismicGriptreads Manual? 0 Play Time 03:11:49 Cumulative 811.1 hours Start 2025.12.24 @ 16:37:58 End 2025.12.26 @ 13:48:18 Sessions 15 Manual Loads 0 Difficulty Rogue Special Mode None Game No. 405 Rogue 405 Adventurer 0 Explorer 0 Win Type - Total 68 Types 44/5/6/4/1/1/3/2/1/1 Lore% 92 Gallery% 85 Achievement% 68 Wizard Run 0 Options --------- Layout 0 ASCII 0 Keyboard 1 Movement Numpad Keybinds 0 Fullscreen 2 Font 18/SmallcapsGlow Map View 76x50 Zoom Use 0% Tactical HUD 1 Map Filters NONE Filters NONE Steam 1 RUN: 8fac83ed-3d88-4417-9f52-fc3c84d35ec3